[Event "NK ABC Kwalificatie 2"]
[Site "Zoetermeer, Netherlands"]
[Date "2025.01.05"]
[Round "5.12"]
[White "Thijssen, Freek"]
[Black "Pathak, Raghav"]
[Result "1/2-1/2"]
[TimeControl "55+10"]
[WhiteFideId "8806479"]
[BlackFideId "8923849"]
[WhiteElo "1889"]
[BlackElo "1926"]

1. e4 {[%emt 00:00:04]} c6 {[%clk 00:55:15]} {[%emt 00:00:03]} 2. d4 {[%clk
00:55:05]} {[%emt 00:00:21]} d5 {[%clk 00:55:20]} {[%emt 00:00:05]} 3. f3
{[%clk 00:55:01]} {[%emt 00:00:15]} e6 {[%clk 00:55:24]} {[%emt 00:00:05]} 4.
Nc3 {[%clk 00:55:08]} {[%emt 00:00:04]} Bb4 {[%clk 00:55:26]} {[%emt 00:00:08]}
5. Bf4 {[%clk 00:55:03]} {[%emt 00:00:14]} Nf6 {[%clk 00:54:48]} {[%emt
00:00:49]} 6. e5 {[%clk 00:52:58]} {[%emt 00:02:15]} Nfd7 {[%clk 00:54:39]}
{[%emt 00:00:19]} 7. Qd2 {[%clk 00:48:31]} {[%emt 00:04:37]} Be7 {[%clk
00:52:09]} {[%emt 00:02:39]} 8. Nge2 {[%clk 00:40:24]} {[%emt 00:08:17]} f6
{[%clk 00:51:34]} {[%emt 00:00:46]} 9. exf6 {[%clk 00:29:52]} {[%emt 00:10:42]}
Bxf6 {[%clk 00:51:26]} {[%emt 00:00:18]} 10. g4 {[%clk 00:29:27]} {[%emt
00:00:36]} Bh4+ {[%clk 00:50:41]} {[%emt 00:00:53]} 11. Bg3 {[%clk 00:27:45]}
{[%emt 00:01:53]} O-O {[%clk 00:50:39]} {[%emt 00:00:12]} 12. Nf4 {[%clk
00:25:23]} {[%emt 00:02:32]} Nb6 {[%clk 00:49:37]} {[%emt 00:01:11]} 13. O-O-O
{[%clk 00:25:02]} {[%emt 00:00:32]} a5 {[%clk 00:47:50]} {[%emt 00:01:57]} 14.
Kb1 {[%clk 00:21:24]} {[%emt 00:03:47]} a4 {[%clk 00:47:27]} {[%emt 00:00:34]}
15. Qf2 {[%clk 00:18:05]} {[%emt 00:03:28]} Bg5 {[%clk 00:46:25]} {[%emt
00:01:11]} 16. Nd3 {[%clk 00:15:52]} {[%emt 00:02:25]} Nc4 {[%clk 00:46:06]}
{[%emt 00:00:29]} 17. h4 {[%clk 00:07:48]} {[%emt 00:08:14]} Be3 {[%clk
00:45:48]} {[%emt 00:00:28]} 18. Qh2 {[%clk 00:07:43]} {[%emt 00:00:15]} Na6
{[%clk 00:44:58]} {[%emt 00:01:00]} 19. Ne5 {[%clk 00:05:54]} {[%emt 00:02:00]}
Nxe5 {[%clk 00:43:26]} {[%emt 00:01:41]} 20. Bxe5 {[%clk 00:06:02]} {[%emt
00:00:02]} c5 {[%clk 00:42:46]} {[%emt 00:00:50]} 21. Bxa6 {[%clk 00:02:50]}
{[%emt 00:03:23]} Rxa6 {[%clk 00:42:42]} {[%emt 00:00:13]} 22. dxc5 {[%clk
00:02:37]} {[%emt 00:00:23]} Bxc5 {[%clk 00:42:25]} {[%emt 00:00:27]} 23. Ne4
{[%clk 00:01:54]} {[%emt 00:00:53]} Be7 {[%clk 00:42:14]} {[%emt 00:00:21]} 24.
f4 {[%clk 00:01:44]} {[%emt 00:00:21]} Bd7 {[%clk 00:41:29]} {[%emt 00:00:54]}
25. Ng3 {[%clk 00:01:46]} {[%emt 00:00:08]} Bf6 {[%clk 00:41:13]} {[%emt
00:00:25]} 26. Bxf6 {[%clk 00:01:50]} {[%emt 00:00:07]} Qxf6 {[%clk 00:41:13]}
{[%emt 00:00:09]} 27. Nh5 {[%clk 00:01:40]} {[%emt 00:00:20]} Qe7 {[%clk
00:41:17]} {[%emt 00:00:05]} 28. f5 {[%clk 00:01:38]} {[%emt 00:00:14]} exf5
{[%clk 00:41:02]} {[%emt 00:00:26]} 29. Rhe1 {[%clk 00:01:42]} {[%emt
00:00:05]} Qc5 {[%clk 00:40:56]} {[%emt 00:00:15]} 30. Qe5 {[%clk 00:01:38]}
{[%emt 00:00:15]} Rg6 {[%clk 00:40:23]} {[%emt 00:00:43]} 31. Rxd5 {[%clk
00:01:43]} {[%emt 00:00:05]} Qc8 {[%clk 00:39:46]} {[%emt 00:00:45]} 32. g5
{[%clk 00:01:20]} {[%emt 00:00:35]} Re8 {[%clk 00:39:15]} {[%emt 00:00:41]} 33.
Qg3 {[%emt 00:00:03]} Rxe1+ {[%clk 00:39:09]} {[%emt 00:00:13]} 34. Qxe1 {[%clk
00:01:39]} Re6 {[%clk 00:38:46]} {[%emt 00:00:33]} 35. Qd2 {[%clk 00:01:40]}
{[%emt 00:00:08]} Qc4 {[%clk 00:38:28]} {[%emt 00:00:26]} 36. b3 {[%clk
00:01:24]} {[%emt 00:00:29]} axb3 {[%clk 00:37:35]} {[%emt 00:01:03]} 37. axb3
{[%clk 00:01:27]} {[%emt 00:00:07]} Qf1+ {[%clk 00:37:36]} {[%emt 00:00:08]} 38.
Kb2 {[%clk 00:01:29]} {[%emt 00:00:09]} Be8 {[%clk 00:35:09]} {[%emt 00:02:37]}
39. Rd8 {[%clk 00:01:16]} {[%emt 00:00:24]} Qb5 {[%clk 00:34:37]} {[%emt
00:00:40]} 40. Qd4 {[%clk 00:00:49]} {[%emt 00:00:39]} Re7 {[%clk 00:33:34]}
{[%emt 00:01:12]} 1/2-1/2

[Event "NK ABC Kwalificatie 2"]
[Site "Zoetermeer, Netherlands"]
[Date "2025.01.05"]
[Round "5.15"]
[White "Los, Evan"]
[Black "Baarspul, Bram"]
[Result "1/2-1/2"]
[TimeControl "55+10"]
[WhiteFideId "8887274"]
[BlackFideId "9026171"]
[WhiteElo "1799"]
[BlackElo "1986"]

1. c4 {[%clk 00:55:14]} {[%emt 00:00:06]} Nf6 {[%clk 00:55:13]} {[%emt
00:00:07]} 2. Nc3 {[%clk 00:55:18]} {[%emt 00:00:05]} d5 {[%clk 00:55:20]}
{[%emt 00:00:04]} 3. cxd5 {[%clk 00:55:15]} {[%emt 00:00:13]} Nxd5 {[%clk
00:55:26]} {[%emt 00:00:03]} 4. Nf3 {[%clk 00:54:49]} {[%emt 00:00:37]} Nxc3
{[%clk 00:55:17]} {[%emt 00:00:20]} 5. bxc3 {[%clk 00:54:52]} {[%emt 00:00:06]}
g6 {[%clk 00:55:19]} {[%emt 00:00:08]} 6. g3 {[%clk 00:54:57]} {[%emt
00:00:04]} Bg7 {[%clk 00:55:24]} {[%emt 00:00:05]} 7. Bg2 {[%clk 00:55:02]}
{[%emt 00:00:06]} O-O {[%clk 00:55:29]} {[%emt 00:00:05]} 8. O-O {[%clk
00:53:47]} {[%emt 00:01:25]} c5 {[%clk 00:52:57]} {[%emt 00:02:41]} 9. Ba3
{[%clk 00:51:40]} {[%emt 00:02:17]} Qa5 {[%clk 00:50:28]} {[%emt 00:02:40]} 10.
Bb2 {[%clk 00:50:38]} {[%emt 00:01:13]} Nc6 {[%clk 00:49:30]} {[%emt 00:01:08]}
11. Qc2 {[%clk 00:48:08]} {[%emt 00:02:39]} e5 {[%clk 00:44:24]} {[%emt
00:05:16]} 12. d3 {[%clk 00:38:46]} {[%emt 00:09:32]} Be6 {[%clk 00:42:51]}
{[%emt 00:01:43]} 13. Nd2 {[%clk 00:37:47]} {[%emt 00:01:08]} Qc7 {[%clk
00:35:45]} {[%emt 00:07:17]} 14. c4 {[%clk 00:36:37]} {[%emt 00:01:20]} Nd4
{[%clk 00:34:14]} {[%emt 00:01:41]} 15. Bxd4 {[%clk 00:36:41]} {[%emt
00:00:07]} exd4 {[%clk 00:33:54]} {[%emt 00:00:30]} 16. Rab1 {[%clk 00:35:44]}
{[%emt 00:01:06]} Rab8 {[%clk 00:33:10]} {[%emt 00:00:53]} 17. Rb2 {[%clk
00:30:33]} {[%emt 00:05:22]} Rfe8 {[%clk 00:30:33]} {[%emt 00:02:48]} 18. Rfb1
{[%clk 00:29:56]} {[%emt 00:00:46]} b6 {[%clk 00:30:30]} {[%emt 00:00:14]} 19.
a4 {[%clk 00:29:27]} {[%emt 00:00:39]} Bd7 {[%clk 00:29:14]} {[%emt 00:01:25]}
20. Nf1 {[%clk 00:29:07]} {[%emt 00:00:30]} Bc6 {[%clk 00:27:52]} {[%emt
00:01:33]} 21. Bxc6 {[%clk 00:29:04]} {[%emt 00:00:12]} Qxc6 {[%clk 00:28:01]}
{[%emt 00:00:02]} 22. a5 {[%clk 00:29:07]} {[%emt 00:00:07]} Re7 {[%clk
00:25:58]} {[%emt 00:02:12]} 23. axb6 {[%clk 00:27:32]} {[%emt 00:01:45]} Rxb6
{[%clk 00:25:08]} {[%emt 00:01:00]} 24. Rxb6 {[%clk 00:27:25]} {[%emt
00:00:17]} axb6 {[%clk 00:25:17]} {[%emt 00:00:02]} 25. e3 {[%clk 00:24:35]}
{[%emt 00:02:59]} h5 {[%clk 00:24:28]} {[%emt 00:00:59]} 26. e4 {[%clk
00:22:32]} {[%emt 00:02:13]} Ra7 {[%clk 00:22:28]} {[%emt 00:02:10]} 27. Rb3
{[%clk 00:20:16]} {[%emt 00:02:27]} Be5 {[%clk 00:18:54]} {[%emt 00:03:44]} 28.
Qb2 {[%clk 00:19:36]} {[%emt 00:00:50]} Bc7 {[%clk 00:18:34]} {[%emt 00:00:30]}
29. Ra3 {[%clk 00:19:27]} {[%emt 00:00:18]} Rxa3 {[%clk 00:18:18]} {[%emt
00:00:26]} 30. Qxa3 {[%clk 00:19:31]} {[%emt 00:00:06]} b5 {[%clk 00:18:04]}
{[%emt 00:00:25]} 31. Qb3 {[%clk 00:18:23]} {[%emt 00:01:17]} b4 {[%clk
00:17:34]} {[%emt 00:00:40]} 32. Nd2 {[%clk 00:17:22]} {[%emt 00:01:11]} Qa8
{[%clk 00:16:01]} {[%emt 00:01:44]} 33. Qb1 {[%clk 00:17:27]} {[%emt 00:00:05]}
Qa3 {[%clk 00:15:35]} {[%emt 00:00:36]} 34. Nb3 {[%clk 00:17:28]} {[%emt
00:00:08]} Qa7 {[%clk 00:15:02]} {[%emt 00:00:43]} 35. Qc2 {[%clk 00:15:53]}
{[%emt 00:01:44]} Bd8 {[%clk 00:14:48]} {[%emt 00:00:25]} 36. h4 {[%clk
00:15:14]} {[%emt 00:00:49]} Kg7 {[%clk 00:14:33]} {[%emt 00:00:24]} 37. Kg2
{[%clk 00:15:18]} {[%emt 00:00:07]} f6 {[%clk 00:13:52]} {[%emt 00:00:52]} 38.
f4 {[%clk 00:14:29]} {[%emt 00:00:58]} g5 {[%clk 00:13:24]} {[%emt 00:00:38]}
39. fxg5 {[%clk 00:12:09]} {[%emt 00:02:30]} fxg5 {[%clk 00:13:32]} {[%emt
00:00:02]} 40. Qd1 {[%clk 00:11:52]} {[%emt 00:00:27]} Kg6 {[%clk 00:12:30]}
{[%emt 00:01:12]} 41. hxg5 {[%clk 00:11:36]} {[%emt 00:00:27]} Bxg5 {[%clk
00:12:34]} {[%emt 00:00:05]} 42. Qe2 {[%clk 00:09:49]} {[%emt 00:01:57]} Qb6
{[%clk 00:07:26]} {[%emt 00:05:18]} 43. Qf2 {[%clk 00:09:22]} {[%emt 00:00:38]}
Qd6 {[%clk 00:07:12]} {[%emt 00:00:23]} 1/2-1/2

[Event "NK ABC Kwalificatie 2"]
[Site "Zoetermeer, Netherlands"]
[Date "2025.01.05"]
[Round "5.16"]
[White "Koppenens, Oscar"]
[Black "Bajnath, Dhanesh"]
[Result "1-0"]
[TimeControl "55+10"]
[WhiteFideId "8863833"]
[BlackFideId "9005634"]
[WhiteElo "1948"]
[BlackElo "1791"]

1. e4 {[%clk 00:55:17]} {[%emt 00:00:02]} e5 {[%clk 00:51:00]} {[%emt
00:04:21]} 2. Nf3 {[%clk 00:55:21]} {[%emt 00:00:06]} Nc6 {[%clk 00:51:10]} 3.
Bc4 {[%clk 00:55:25]} {[%emt 00:00:07]} Nf6 {[%clk 00:51:16]} {[%emt 00:00:03]}
4. d4 {[%clk 00:55:31]} {[%emt 00:00:04]} exd4 {[%clk 00:50:27]} {[%emt
00:00:59]} 5. e5 {[%clk 00:55:36]} {[%emt 00:00:05]} d5 {[%clk 00:50:30]}
{[%emt 00:00:06]} 6. Bb5 {[%clk 00:55:43]} {[%emt 00:00:04]} Ne4 {[%clk
00:50:30]} {[%emt 00:00:10]} 7. Nxd4 {[%clk 00:55:48]} {[%emt 00:00:05]} Bd7
{[%clk 00:50:32]} {[%emt 00:00:07]} 8. Bxc6 {[%clk 00:55:53]} {[%emt 00:00:05]}
bxc6 {[%clk 00:50:38]} {[%emt 00:00:05]} 9. O-O {[%clk 00:55:58]} {[%emt
00:00:05]} Bc5 {[%clk 00:50:31]} {[%emt 00:00:17]} 10. f3 {[%clk 00:56:04]}
{[%emt 00:00:04]} Ng5 {[%clk 00:49:08]} {[%emt 00:01:32]} 11. f4 {[%clk
00:56:08]} {[%emt 00:00:06]} Ne4 {[%clk 00:49:07]} {[%emt 00:00:11]} 12. Be3
{[%clk 00:56:09]} {[%emt 00:00:10]} Qb8 {[%clk 00:41:00]} {[%emt 00:08:17]} 13.
Qc1 {[%clk 00:53:09]} {[%emt 00:03:11]} O-O {[%clk 00:39:31]} {[%emt 00:01:38]}
14. f5 {[%clk 00:51:34]} {[%emt 00:01:45]} Bxd4 {[%clk 00:31:22]} {[%emt
00:08:19]} 15. Bxd4 {[%clk 00:51:29]} {[%emt 00:00:16]} c5 {[%clk 00:31:28]}
{[%emt 00:00:03]} 16. Be3 {[%clk 00:40:57]} {[%emt 00:10:40]} c6 {[%clk
00:30:54]} {[%emt 00:00:46]} 17. f6 {[%clk 00:39:52]} {[%emt 00:01:15]} Qxe5
{[%clk 00:26:18]} {[%emt 00:04:45]} 18. fxg7 {[%clk 00:37:33]} {[%emt
00:02:30]} Rfe8 {[%clk 00:20:10]} {[%emt 00:06:17]} 19. Bf4 {[%clk 00:35:59]}
{[%emt 00:01:44]} Qd4+ {[%clk 00:17:46]} {[%emt 00:02:35]} 20. Be3 {[%clk
00:35:39]} {[%emt 00:00:30]} Qxg7 {[%clk 00:17:09]} {[%emt 00:00:46]} 21. Bh6
{[%clk 00:29:26]} {[%emt 00:06:24]} Qg6 {[%clk 00:14:06]} {[%emt 00:03:08]} 22.
Kh1 {[%clk 00:26:06]} {[%emt 00:03:34]} Re6 {[%clk 00:06:43]} {[%emt 00:07:34]}
23. Bf4 {[%clk 00:25:39]} {[%emt 00:00:37]} Rae8 {[%clk 00:06:09]} {[%emt
00:00:44]} 24. Nc3 {[%clk 00:25:34]} {[%emt 00:00:15]} Nxc3 {[%clk 00:05:40]}
{[%emt 00:00:39]} 25. bxc3 {[%clk 00:25:38]} {[%emt 00:00:06]} Re2 {[%clk
00:05:32]} {[%emt 00:00:17]} 26. Bg3 {[%clk 00:24:36]} {[%emt 00:01:13]} Rxc2
{[%emt 00:01:08]} 27. Qf4 {[%clk 00:24:32]} {[%emt 00:00:06]} Rxc3 {[%clk
00:03:37]} {[%emt 00:01:15]} 28. Rae1 {[%clk 00:22:54]} {[%emt 00:01:48]} Rc4
{[%clk 00:01:44]} {[%emt 00:02:03]} 29. Qc7 {[%clk 00:22:00]} {[%emt 00:01:03]}
Rxe1 {[%clk 00:00:59]} {[%emt 00:00:56]} 30. Rxe1 {[%clk 00:22:03]} {[%emt
00:00:06]} Be6 {[%clk 00:00:33]} {[%emt 00:00:37]} 31. Qxc6 {[%clk 00:20:31]}
{[%emt 00:01:42]} d4 {[%clk 00:00:37]} {[%emt 00:00:06]} 32. Be5 {[%clk
00:20:24]} {[%emt 00:00:16]} f6 {[%clk 00:00:13]} {[%emt 00:00:35]} 33. Qxe6+
{[%clk 00:20:27]} {[%emt 00:00:07]} Qf7 {[%clk 00:00:19]} {[%emt 00:00:05]} 34.
Qg4+ {[%clk 00:19:06]} {[%emt 00:01:30]} Qg7 {[%clk 00:00:19]} {[%emt
00:00:11]} 35. Qe2 {[%clk 00:18:51]} {[%emt 00:00:24]} Rc3 {[%clk 00:00:17]}
{[%emt 00:00:11]} 36. Bd6 {[%clk 00:18:41]} {[%emt 00:00:19]} Kf7 {[%clk
00:00:14]} {[%emt 00:00:15]} 37. Qe8# {[%clk 00:18:42]} {[%emt 00:00:09]} 1-0

[Event "NK ABC Kwalificatie 2"]
[Site "Zoetermeer, Netherlands"]
[Date "2025.01.05"]
[Round "5.17"]
[White "Cubuk, Armin"]
[Black "Kumar, Prayan Sai"]
[Result "1-0"]
[TimeControl "55+10"]
[WhiteFideId "9004138"]
[BlackFideId "8803069"]
[WhiteElo "1777"]
[BlackElo "1901"]

1. e4 {[%emt 01:01:42]} c6 {[%clk 00:55:05]} 2. d4 {[%clk 00:55:22]} {[%emt
00:00:04]} d5 {[%clk 00:55:08]} {[%emt 00:00:07]} 3. Nc3 {[%clk 00:55:28]}
{[%emt 00:00:04]} dxe4 {[%clk 00:54:58]} {[%emt 00:00:18]} 4. Nxe4 {[%clk
00:55:33]} {[%emt 00:00:06]} Nf6 {[%clk 00:54:45]} {[%emt 00:00:23]} 5. Nxf6+
{[%clk 00:55:38]} {[%emt 00:00:05]} exf6 {[%clk 00:54:24]} {[%emt 00:00:32]} 6.
c3 {[%clk 00:55:42]} {[%emt 00:00:06]} Bd6 {[%clk 00:54:12]} {[%emt 00:00:22]}
7. Bd3 {[%clk 00:55:43]} {[%emt 00:00:09]} O-O {[%clk 00:53:35]} {[%emt
00:00:46]} 8. Qc2 {[%clk 00:55:41]} {[%emt 00:00:12]} Re8+ {[%clk 00:53:29]}
{[%emt 00:00:16]} 9. Ne2 {[%clk 00:55:45]} {[%emt 00:00:06]} h5 {[%clk
00:52:16]} {[%emt 00:01:24]} 10. h3 {[%clk 00:53:48]} {[%emt 00:02:07]} Qc7
{[%clk 00:47:26]} {[%emt 00:05:00]} 11. O-O {[%clk 00:53:03]} {[%emt 00:00:55]}
Be6 {[%clk 00:43:35]} {[%emt 00:04:01]} 12. Be3 {[%clk 00:51:49]} {[%emt
00:01:23]} Nd7 {[%clk 00:42:45]} {[%emt 00:01:00]} 13. Rac1 {[%clk 00:49:32]}
{[%emt 00:02:28]} Nf8 {[%clk 00:37:15]} {[%emt 00:05:40]} 14. a3 {[%clk
00:48:09]} {[%emt 00:01:33]} Rad8 {[%clk 00:32:44]} {[%emt 00:04:41]} 15. Rfd1
{[%clk 00:46:58]} {[%emt 00:01:21]} g6 {[%clk 00:31:22]} {[%emt 00:01:32]} 16.
Bh6 {[%clk 00:43:32]} {[%emt 00:03:35]} Kh7 {[%clk 00:26:35]} {[%emt 00:04:58]}
17. Be3 {[%clk 00:41:49]} {[%emt 00:01:53]} f5 {[%clk 00:25:50]} {[%emt
00:00:55]} 18. Qd2 {[%clk 00:40:36]} {[%emt 00:01:23]} Bd5 {[%clk 00:10:58]}
{[%emt 00:15:02]} 19. Bf4 {[%clk 00:38:38]} {[%emt 00:02:07]} Be4 {[%clk
00:10:00]} {[%emt 00:01:09]} 20. Bxd6 {[%clk 00:35:59]} {[%emt 00:02:49]} Qxd6
{[%clk 00:09:57]} {[%emt 00:00:13]} 21. Bc4 {[%clk 00:34:15]} {[%emt 00:01:54]}
Ne6 {[%clk 00:08:54]} {[%emt 00:01:13]} 22. f3 {[%clk 00:23:03]} {[%emt
00:11:22]} Bd5 {[%clk 00:08:52]} {[%emt 00:00:12]} 23. Bxd5 {[%clk 00:23:11]}
{[%emt 00:00:02]} cxd5 {[%clk 00:08:36]} {[%emt 00:00:26]} 24. c4 {[%clk
00:22:48]} {[%emt 00:00:34]} g5 {[%clk 00:06:50]} {[%emt 00:01:55]} 25. Qa5
{[%clk 00:21:40]} {[%emt 00:01:18]} a6 {[%clk 00:05:37]} {[%emt 00:01:23]} 26.
cxd5 {[%clk 00:21:13]} {[%emt 00:00:37]} Qxd5 {[%clk 00:05:24]} {[%emt
00:00:23]} 27. Qb6 {[%clk 00:20:10]} {[%emt 00:01:12]} Kg7 {[%clk 00:02:13]}
{[%emt 00:03:21]} 28. Nc3 {[%clk 00:19:38]} {[%emt 00:00:42]} Qc6 {[%clk
00:01:16]} {[%emt 00:01:07]} 29. Qxc6 {[%clk 00:18:58]} {[%emt 00:00:51]} bxc6
{[%clk 00:01:25]} 30. d5 {[%clk 00:18:37]} {[%emt 00:00:31]} cxd5 {[%clk
00:01:15]} {[%emt 00:00:20]} 31. Rxd5 {[%clk 00:18:13]} {[%emt 00:00:34]} Nf4
{[%clk 00:00:44]} {[%emt 00:00:42]} 32. Rxf5 {[%clk 00:17:31]} {[%emt
00:00:52]} Kg6 {[%clk 00:00:47]} {[%emt 00:00:06]} 33. Ra5 {[%clk 00:17:20]}
{[%emt 00:00:21]} Rd2 {[%clk 00:00:52]} {[%emt 00:00:05]} 34. Rxa6+ {[%clk
00:17:16]} {[%emt 00:00:14]} Kh7 {[%clk 00:00:23]} {[%emt 00:00:39]} 35. Kf1
{[%clk 00:15:29]} {[%emt 00:01:58]} Rxg2 {[%clk 00:00:15]} {[%emt 00:00:18]} 36.
Ne4 {[%clk 00:15:01]} {[%emt 00:00:37]} Kg7 {[%clk 00:00:15]} {[%emt 00:00:10]}
37. b4 {[%clk 00:13:52]} {[%emt 00:01:19]} Rh2 {[%clk 00:00:00]} {[%emt
00:00:01]} 1-0

[Event "NK ABC Kwalificatie 2"]
[Site "Zoetermeer, Netherlands"]
[Date "2025.01.05"]
[Round "6.1"]
[White "Snijders, Take"]
[Black "Ertabak, Aral"]
[Result "1-0"]
[TimeControl "55+10"]
[WhiteFideId "8935927"]
[BlackFideId "9008483"]
[WhiteElo "2119"]
[BlackElo "1842"]

1. e4 {[%clk 00:55:16]} {[%emt 00:00:03]} c6 {[%clk 00:55:15]} {[%emt
00:00:05]} 2. d4 {[%clk 00:55:23]} {[%emt 00:00:03]} d5 {[%clk 00:55:22]}
{[%emt 00:00:04]} 3. e5 {[%clk 00:55:30]} {[%emt 00:00:03]} Bf5 {[%clk
00:55:16]} {[%emt 00:00:16]} 4. h4 {[%clk 00:55:36]} {[%emt 00:00:04]} h6
{[%clk 00:55:12]} {[%emt 00:00:14]} 5. g4 {[%clk 00:55:21]} {[%emt 00:00:25]}
Be4 {[%clk 00:55:12]} {[%emt 00:00:10]} 6. f3 {[%clk 00:55:26]} {[%emt
00:00:06]} Bh7 {[%clk 00:55:13]} {[%emt 00:00:08]} 7. e6 {[%clk 00:55:22]}
{[%emt 00:00:14]} Qd6 {[%clk 00:55:05]} {[%emt 00:00:18]} 8. exf7+ {[%clk
00:55:18]} {[%emt 00:00:14]} Kxf7 {[%clk 00:55:13]} {[%emt 00:00:02]} 9. f4
{[%clk 00:55:05]} {[%emt 00:00:23]} Nf6 {[%clk 00:55:01]} {[%emt 00:00:22]} 10.
Nf3 {[%clk 00:54:42]} {[%emt 00:00:33]} Nxg4 {[%clk 00:54:49]} {[%emt
00:00:22]} 11. Bh3 {[%clk 00:54:19]} {[%emt 00:00:33]} h5 {[%clk 00:54:29]}
{[%emt 00:00:30]} 12. Ne5+ {[%clk 00:53:56]} {[%emt 00:00:33]} Kg8 {[%clk
00:50:33]} {[%emt 00:04:06]} 13. Nxg4 {[%clk 00:52:55]} {[%emt 00:01:11]} hxg4
{[%clk 00:50:35]} {[%emt 00:00:09]} 14. Qxg4 {[%clk 00:53:02]} {[%emt
00:00:02]} Bxc2 {[%clk 00:50:01]} {[%emt 00:00:44]} 15. Qe6+ {[%clk 00:53:06]}
{[%emt 00:00:06]} Kh7 {[%clk 00:49:20]} {[%emt 00:00:51]} 16. Rh2 {[%clk
00:49:22]} {[%emt 00:03:54]} Bd3 {[%clk 00:48:53]} {[%emt 00:00:38]} 17. Qe3
{[%clk 00:43:25]} {[%emt 00:06:06]} Bxb1 {[%clk 00:44:35]} {[%emt 00:04:28]} 18.
Rxb1 {[%clk 00:43:27]} {[%emt 00:00:07]} Na6 {[%clk 00:37:43]} {[%emt
00:07:03]} 19. Rg2 {[%clk 00:35:15]} {[%emt 00:08:22]} Qf6 {[%clk 00:31:53]}
{[%emt 00:06:00]} 20. Rg5 {[%clk 00:24:26]} {[%emt 00:10:59]} Nc7 {[%clk
00:30:01]} {[%emt 00:02:02]} 21. Bd2 {[%clk 00:19:46]} {[%emt 00:04:50]} e6
{[%clk 00:18:41]} {[%emt 00:11:30]} 22. Ke2 {[%clk 00:18:51]} {[%emt 00:01:05]}
Re8 {[%clk 00:18:15]} {[%emt 00:00:36]} 23. Rbg1 {[%clk 00:17:55]} {[%emt
00:01:06]} Nb5 {[%clk 00:12:07]} {[%emt 00:06:19]} 24. Bc3 {[%clk 00:13:29]}
{[%emt 00:04:36]} Nd6 {[%clk 00:10:37]} {[%emt 00:01:40]} 25. h5 {[%clk
00:13:09]} {[%emt 00:00:30]} Ne4 {[%clk 00:08:24]} {[%emt 00:02:22]} 26. Rg6
{[%clk 00:12:45]} {[%emt 00:00:35]} Qf7 {[%clk 00:07:27]} {[%emt 00:01:07]} 27.
Qf3 {[%clk 00:10:19]} {[%emt 00:02:35]} Rg8 {[%clk 00:02:10]} {[%emt 00:05:28]}
28. Qg4 {[%clk 00:07:00]} {[%emt 00:03:29]} Qf5 {[%clk 00:01:16]} {[%emt
00:01:03]} 29. Qxf5 {[%clk 00:03:59]} {[%emt 00:03:12]} exf5 {[%clk 00:01:20]}
{[%emt 00:00:06]} 30. Kf3 {[%clk 00:04:07]} {[%emt 00:00:02]} Kh8 {[%clk
00:00:12]} {[%emt 00:01:18]} 31. Bxf5 {[%clk 00:03:21]} {[%emt 00:00:56]} Nxc3
{[%clk 00:00:15]} {[%emt 00:00:08]} 32. bxc3 {[%clk 00:02:56]} {[%emt
00:00:34]} Ba3 {[%clk 00:00:12]} {[%emt 00:00:13]} 33. h6 {[%clk 00:02:55]}
{[%emt 00:00:11]} Re7 {[%clk 00:00:12]} {[%emt 00:00:10]} 34. Rh1 {[%clk
00:02:45]} {[%emt 00:00:20]} gxh6 {[%clk 00:00:11]} {[%emt 00:00:10]} 35.
Rhxh6+ {[%emt 00:00:13]} Rh7 {[%clk 00:00:21]} 36. Rxg8+ {[%clk 00:02:50]}
{[%emt 00:00:02]} 1-0